fUST/lending_fUST_20250508
["ID","MTS","AMOUNT","RATE_DAILY","PERIOD"]
[360284652,1746703833679,-400.0,0.00011506,2]
[360284653,1746703833689,-400.0,0.00011506,2]
[360284654,1746703833699,-400.0,0.00011506,2]
[360284655,1746703833709,-717.88,0.00011506,2]
[360284656,1746703833721,-400.0,0.00011506,2]
[360284657,1746703833731,-400.0,0.00011506,2]
[360284658,1746703833743,-400.0,0.00011506,2]
[360284659,1746703833752,-400.0,0.00011506,2]
[360284660,1746703833762,-429.33,0.00011506,2]
[360284661,1746703833772,-444.07,0.00011506,2]
[360284662,1746703833782,-400.0,0.00011506,2]
[360284663,1746703833791,-400.0,0.00011506,2]
[360284664,1746703833801,-775.99,0.00011506,2]
[360284665,1746703833810,-148.75861219,0.00011506,2]
[360284673,1746703838380,-337.90960781,0.00010958,2]
[360284818,1746703843596,-62.09039219,0.00010958,2]
[360284819,1746703843607,-315.87015288,0.00010958,2]
[360284824,1746703846480,-0.0044146,0.00010958,2]
[360284837,1746704310630,1000.0,0.00023,120]
[360284839,1746704387142,160.23,0.00010205,2]
[360284843,1746704473815,701.9438867,0.00010026,2]
[360284848,1746704623691,1833.7635422,0.00010098,2]
[360284853,1746704688812,8464.2925711,0.00010098,2]
[360284854,1746704688841,3100.0,0.00010098,2]
[360284855,1746704688865,13335.7074289,0.00010098,2]
[360284864,1746704993366,3414.4139527,9.991e-05,2]
[360284907,1746705032971,-300.0,0.00010952,2]
[360284908,1746705032981,-300.0,0.00010952,2]
[360284910,1746705032991,-300.0,0.00010952,2]
[360284912,1746705033000,-1200.0,0.00010952,2]
[360284913,1746705033009,-300.0,0.00010952,2]
[360284914,1746705033019,-37475.31361881,0.00010953,2]
[360284915,1746705033029,-500.0,0.00010957,2]
[360284916,1746705033039,-500.0,0.00010957,2]
[360284917,1746705033048,-500.0,0.00010957,2]
[360284918,1746705033059,-263.54341006,0.00010957,2]
[360284919,1746705033068,-518.75611662,0.00010957,2]
[360284920,1746705033078,-500.0,0.00010957,2]
[360284921,1746705033088,-400.0,0.00010958,2]
[360284922,1746705033097,-400.0,0.00010958,2]
[360284923,1746705033107,-568.62,0.00010958,2]
[360284924,1746705033117,-400.0,0.00010958,2]
[360284925,1746705033128,-400.0,0.00010958,2]
[360284926,1746705033137,-213.30983601,0.00010958,2]
[360284927,1746705033147,-400.0,0.00010958,2]
[360284928,1746705033157,-400.0,0.00010958,2]
[360284929,1746705033166,-400.0,0.00010958,2]
[360284930,1746705033176,-628.15,0.00010958,2]
[360284931,1746705033186,-400.0,0.00010958,2]
[360284932,1746705033195,-400.0,0.00010958,2]
[360284933,1746705033204,-400.0,0.00010958,2]
[360284934,1746705033214,-400.0,0.00010958,2]
[360284935,1746705033223,-400.0,0.00010958,2]
[360284936,1746705033233,-400.0,0.00010958,2]
[360284937,1746705033242,-400.0,0.00010958,2]
[360284938,1746705033252,-400.0,0.00010958,2]
[360284939,1746705033261,-400.0,0.00010958,2]
[360284940,1746705033271,-400.0,0.00010958,2]
[360284941,1746705033282,-400.0,0.00010958,2]
[360284942,1746705033291,-678.99,0.00010958,2]
[360284943,1746705033301,-400.0,0.00010958,2]
[360284944,1746705033310,-400.0,0.00010958,2]
[360284945,1746705033320,-292.26390532,0.00010958,2]
[360284946,1746705033329,-306.90278199,0.00010958,2]
[360284947,1746705033339,-400.0,0.00010958,2]
[360284948,1746705033349,-400.0,0.00010958,2]
[360284949,1746705033359,-400.0,0.00010958,2]
[360284950,1746705033369,-400.0,0.00010958,2]
[360284951,1746705033381,-617.74,0.00010958,2]
[360284952,1746705033390,-400.0,0.00010958,2]
[360284953,1746705033400,-260.40749592,0.00010958,2]
[360284954,1746705033409,-808.61881104,0.00011129,2]
[360284955,1746705033419,-808.61881101,0.00011129,2]
[360284956,1746705033428,-808.61881101,0.0001113,2]
[360284957,1746705033437,-808.61881101,0.0001113,2]
[360284958,1746705033447,-808.61881101,0.0001113,2]
[360284959,1746705033457,-152.0,0.00011199,2]
[360284960,1746705033467,-46447.70023884,0.00011229,3]
[360284961,1746705033477,-21754.74908389,0.00011229,2]
[360284962,1746705033497,-9240.56126483,0.00011229,2]
[360284963,1746705033508,-60992.49546467,0.00011229,2]
[360284985,1746705038548,-500.0,0.00010952,2]
[360284986,1746705038557,-166.68264225,0.00010952,2]
[360284987,1746705038599,-333.31735775,0.00010952,2]
[360284988,1746705038608,-411.05264224,0.00010952,2]
[360284989,1746705038655,-88.94735776,0.00010952,2]
[360284990,1746705038664,-500.0,0.00010952,2]
[360284991,1746705038676,-258.76473905,0.00010952,2]
[360284992,1746705038707,-241.23526095,0.00010952,2]
[360284994,1746705038717,-500.0,0.00010952,2]
[360284995,1746705038728,-500.0,0.00010952,2]
[360284996,1746705038737,-500.0,0.00010952,2]
[360284997,1746705038746,-250.4496834,0.00010952,2]
[360284998,1746705038755,-500.0,0.00010952,2]
[360284999,1746705038765,-500.0,0.00010952,2]
[360285000,1746705038777,-500.0,0.00010952,2]
[360285001,1746705038786,-500.0,0.00010952,2]
[360285002,1746705038795,-157.30718748,0.00010952,2]
[360285003,1746705038804,-472.07421285,0.00010952,2]
[360285004,1746705038813,-500.0,0.00010952,2]
[360285005,1746705038822,-500.0,0.00010952,2]
[360285006,1746705038831,-500.0,0.00010952,2]
[360285007,1746705038840,-500.0,0.00010952,2]
[360285008,1746705038850,-500.0,0.00010952,2]
[360285009,1746705038859,-500.0,0.00010952,2]
[360285010,1746705038869,-500.0,0.00010952,2]
[360285011,1746705038878,-500.0,0.00010952,2]
[360285012,1746705038887,-500.0,0.00010952,2]
[360285013,1746705038896,-500.0,0.00010952,2]
[360285014,1746705038906,-500.0,0.00010952,2]
[360285015,1746705038915,-500.0,0.00010952,2]
[360285016,1746705038925,-307.2586881,0.00010952,2]
[360285017,1746705038934,-500.0,0.00010952,2]
[360285018,1746705038944,-500.0,0.00010952,2]
[360285019,1746705038953,-500.0,0.00010952,2]
[360285020,1746705038962,-500.0,0.00010952,2]
[360285021,1746705038970,-10639.89224593,0.00011229,2]
[360285056,1746705041121,-558.06582944,0.00011229,2]
[360285181,1746705046809,-400.0,0.00010958,2]
[360285182,1746705046821,-548.48235402,0.00011229,2]
[360285241,1746705691272,-173.68154185,0.0001033,2]
[360285242,1746705702034,-947.29073743,0.0001033,2]
[360285243,1746705717105,-335.78290236,0.0001033,2]
[360285245,1746705732554,-250.0,0.0001033,2]
[360285250,1746705955394,24900.0,0.00010005,2]
[360285251,1746705956778,-250.0,0.0001033,2]
[360285259,1746706225438,3315.793726,9.931e-05,2]
[360285260,1746706227676,-250.0,0.0001033,2]
[360285308,1746706232089,-2793.24481836,0.0001033,2]
[360285311,1746706232098,-300.0,0.00010751,2]
[360285313,1746706232107,-1200.0,0.00010751,2]
[360285315,1746706232117,-300.0,0.00010751,2]
[360285317,1746706232126,-9630.42325038,0.00010752,2]
[360285319,1746706232135,-1000.0,0.00010852,2]
[360285321,1746706232148,-250.0,0.00010852,2]
[360285323,1746706232157,-400.0,0.00010958,2]
[360285325,1746706232166,-544.93,0.00010958,2]
[360285327,1746706232175,-400.0,0.00010958,2]
[360285329,1746706232185,-412.62343366,0.00010958,2]
[360285331,1746706232195,-400.0,0.00010958,2]
[360285333,1746706232204,-400.0,0.00010958,2]
[360285334,1746706232214,-295.14309745,0.00010958,2]
[360285335,1746706232226,-400.0,0.00010958,2]
[360285336,1746706232237,-407.1173049,0.00010958,2]
[360285337,1746706232246,-400.0,0.00010958,2]
[360285338,1746706232257,-403.27610216,0.00010958,2]
[360285339,1746706232266,-507.07068178,0.00010958,2]
[360285341,1746706232276,-400.0,0.00010958,2]
[360285343,1746706232285,-400.0,0.00010958,2]
[360285344,1746706232295,-400.0,0.00010958,2]
[360285345,1746706232304,-400.0,0.00010958,2]
[360285346,1746706232313,-400.0,0.00010958,2]
[360285347,1746706232322,-400.0,0.00010958,2]
[360285348,1746706232331,-400.0,0.00010958,2]
[360285349,1746706232341,-400.0,0.00010958,2]
[360285350,1746706232350,-171.70763802,0.00010958,2]
[360285351,1746706232360,-400.0,0.00010958,2]
[360285352,1746706232369,-400.0,0.00010958,2]
[360285353,1746706232379,-400.0,0.00010958,2]
[360285354,1746706232389,-400.0,0.00010958,2]
[360285355,1746706232398,-400.0,0.00010958,2]
[360285356,1746706232407,-500.0,0.00010958,2]
[360285357,1746706232416,-500.0,0.00010958,2]
[360285358,1746706232425,-534.48038704,0.00010958,2]
[360285359,1746706232435,-500.0,0.00010958,2]
[360285360,1746706232444,-500.0,0.00010958,2]
[360285361,1746706232454,-384.64966193,0.00010958,2]
[360285362,1746706232463,-400.0,0.00010958,2]
[360285363,1746706232473,-400.0,0.00010958,2]
[360285364,1746706232483,-400.0,0.00010958,2]
[360285365,1746706232492,-511.80915724,0.00010958,2]
[360285366,1746706232501,-400.0,0.00010958,2]
[360285367,1746706232511,-281.77040964,0.00010958,2]
[360285368,1746706232521,-400.0,0.00010958,2]
[360285369,1746706232530,-400.0,0.00010958,2]
[360285370,1746706232539,-403.42818203,0.00010958,2]
[360285371,1746706232550,-400.0,0.00010958,2]
[360285372,1746706232559,-650.7,0.00010958,2]
[360285373,1746706232568,-400.0,0.00010958,2]
[360285374,1746706232578,-400.0,0.00010958,2]
[360285375,1746706232587,-181.323186,0.00010958,2]
[360285376,1746706232597,-400.0,0.00010958,2]
[360285377,1746706232606,-400.0,0.00010958,2]
[360285378,1746706232616,-400.0,0.00010958,2]
[360285379,1746706232627,-400.0,0.00010958,2]
[360285380,1746706232637,-436.15,0.00010958,2]
[360285381,1746706232647,-400.0,0.00010958,2]
[360285382,1746706232657,-592.0,0.00011231,2]
[360285383,1746706232668,-601.97,0.00011231,2]
[360285384,1746706232678,-400.0,0.00011231,2]
[360285385,1746706232688,-544.93,0.00011232,2]
[360285386,1746706232701,-400.0,0.00011232,2]
[360285387,1746706232712,-400.0,0.00011232,2]
[360285388,1746706232722,-330.05,0.00011232,2]
[360285389,1746706232732,-400.0,0.00011232,2]
[360285390,1746706232742,-400.0,0.00011232,2]
[360285391,1746706232751,-400.0,0.00011232,2]
[360285392,1746706232760,-400.0,0.00011232,2]
[360285393,1746706232770,-400.0,0.00011232,2]
[360285394,1746706232779,-400.0,0.00011232,2]
[360285395,1746706232789,-400.0,0.00011232,2]
[360285396,1746706232799,-400.0,0.00011232,2]
[360285397,1746706232808,-400.0,0.00011232,2]
[360285398,1746706232818,-400.0,0.00011232,2]
[360285399,1746706232828,-400.0,0.00011232,2]
[360285400,1746706232838,-400.0,0.00011232,2]
[360285401,1746706232847,-400.0,0.00011232,2]
[360285402,1746706232857,-650.7,0.00011232,2]
[360285403,1746706232868,-155.62401745,0.00011232,2]
[360285404,1746706232877,-470.71795957,0.00011232,2]
[360285405,1746706232887,-400.0,0.00011232,2]
[360285406,1746706232897,-400.0,0.00011232,2]
[360285407,1746706232906,-436.15,0.00011232,2]
[360285408,1746706232916,-400.0,0.00011232,2]
[360285409,1746706232926,-643.98792228,0.0001134,2]
[360285410,1746706232935,-250.0,0.00011343,2]
[360285411,1746706232945,-326.59286064,0.00011396,2]
[360285412,1746706232955,-1003.54651141,0.00011406,2]
[360285413,1746706232964,-500.0,0.00011465,2]
[360285414,1746706232974,-500.0,0.00011465,2]
[360285415,1746706232984,-500.0,0.00011465,2]
[360285416,1746706232993,-500.0,0.00011465,2]
[360285417,1746706233003,-500.0,0.00011465,2]
[360285418,1746706233013,-500.0,0.00011465,2]
[360285419,1746706233022,-160.0,0.00011497,2]
[360285420,1746706233032,-160.0,0.00011497,2]
[360285421,1746706233041,-160.0,0.00011497,2]
[360285422,1746706233051,-160.0,0.00011497,2]
[360285423,1746706233062,-212.10144473,0.00011497,2]
[360285424,1746706233073,-160.0,0.00011497,2]
[360285425,1746706233082,-160.0,0.00011497,2]
[360285426,1746706233092,-160.0,0.00011497,2]
[360285427,1746706233101,-422.07246323,0.00011497,2]
[360285428,1746706233111,-10120.24163124,0.00011497,2]
[360285429,1746706233125,-2494.99342981,0.00011497,2]
[360285430,1746706233135,-160.0,0.00011497,2]
[360285431,1746706233147,-842.21467215,0.00011497,2]
[360285432,1746706233157,-663.24685853,0.000115,2]
[360285433,1746706233166,-1200.0,0.000115,2]
[360285434,1746706233176,-592.0,0.00011505,2]
[360285435,1746706233187,-601.97,0.00011505,2]
[360285436,1746706233197,-400.0,0.00011505,2]
[360285437,1746706233207,-544.93,0.00011506,2]
[360285438,1746706233217,-400.0,0.00011506,2]
[360285439,1746706233228,-350.4733798,0.00011506,2]
[360285440,1746706233238,-400.0,0.00011506,2]
[360285441,1746706233248,-400.0,0.00011506,2]
[360285442,1746706233257,-400.0,0.00011506,2]
[360285443,1746706233267,-267.80073339,0.00011506,2]
[360285444,1746706233277,-400.0,0.00011506,2]
[360285445,1746706233287,-400.0,0.00011506,2]
[360285446,1746706233296,-400.0,0.00011506,2]
[360285447,1746706233306,-400.0,0.00011506,2]
[360285448,1746706233315,-400.0,0.00011506,2]
[360285449,1746706233326,-400.0,0.00011506,2]
[360285450,1746706233336,-400.0,0.00011506,2]
[360285451,1746706233346,-400.0,0.00011506,2]
[360285452,1746706233356,-400.0,0.00011506,2]
[360285453,1746706233366,-650.7,0.00011506,2]
[360285454,1746706233375,-346.5309881,0.00011506,2]
[360285455,1746706233385,-400.0,0.00011506,2]
[360285456,1746706233395,-436.15,0.00011506,2]
[360285457,1746706233404,-400.0,0.00011506,2]
[360285458,1746706233414,-152.815826,0.00011519,2]
[360285459,1746706233422,-500.0,0.00011546,2]
[360285460,1746706233432,-500.0,0.00011546,2]
[360285461,1746706233442,-500.0,0.00011589,2]
[360285462,1746706233452,-500.0,0.00011589,2]
[360285463,1746706233462,-2240.0,0.00011758,2]
[360285464,1746706233472,-404.0,0.00011758,2]
[360285465,1746706233481,-592.0,0.00011779,2]
[360285466,1746706233491,-601.97,0.00011779,2]
[360285467,1746706233500,-400.0,0.00011779,2]
[360285468,1746706233510,-151.0,0.0001178,2]
[360285469,1746706233519,-151.0,0.0001178,2]
[360285470,1746706233529,-544.93,0.0001178,2]
[360285471,1746706233538,-400.0,0.0001178,2]
[360285472,1746706233548,-400.0,0.0001178,2]
[360285473,1746706233558,-400.0,0.0001178,2]
[360285474,1746706233568,-400.0,0.0001178,2]
[360285475,1746706233579,-400.0,0.0001178,2]
[360285476,1746706233589,-400.0,0.0001178,2]
[360285477,1746706233609,-400.0,0.0001178,2]
[360285478,1746706233619,-400.0,0.0001178,2]
[360285479,1746706233630,-400.0,0.0001178,2]
[360285480,1746706233640,-400.0,0.0001178,2]
[360285481,1746706233650,-400.0,0.0001178,2]
[360285482,1746706233659,-400.0,0.0001178,2]
[360285483,1746706233669,-400.0,0.0001178,2]
[360285484,1746706233679,-650.7,0.0001178,2]
[360285485,1746706233689,-400.0,0.0001178,2]
[360285486,1746706233699,-436.15,0.0001178,2]
[360285487,1746706233709,-312.92017422,0.0001178,2]
[360285488,1746706233719,-175.503,0.0001179,2]
[360285489,1746706233730,-150.177,0.00011791,2]
[360285490,1746706233740,-150.0,0.00011791,2]
[360285491,1746706233749,-67.09338127,0.00011791,2]
[360285529,1746706237741,-391.35103636,0.00010859,2]
[360285530,1746706237751,-124.4104537,0.00010955,2]
[360285651,1746706240386,-45.2009888,0.00010955,2]
[360285684,1746706242949,-330.3885575,0.00010955,2]
[360285686,1746706242958,-438.09160434,0.00010955,2]
[360285688,1746706242968,-500.0,0.00010955,2]
[360285690,1746706242978,-416.07356241,0.00010955,2]
[360285692,1746706242987,-591.46143749,0.00010955,2]
[360285693,1746706242996,-500.0,0.00010955,2]
[360285695,1746706243006,-208.51910761,0.00010955,2]
[360285698,1746706243018,-291.48089239,0.00010955,2]
[360285700,1746706243028,-500.0,0.00010955,2]
[360285702,1746706243037,-189.84229361,0.00010955,2]
[360285821,1746706291030,-242.49172626,0.0001023,2]
[360285822,1746706302132,-385.47218272,0.0001023,2]
[360285823,1746706317335,-178.45494469,0.0001023,2]
[360285824,1746706332137,-193.58114633,0.0001023,2]
[360285825,1746706332161,-53.0955564,0.0001023,2]
[360285826,1746706344877,1000.0,0.0001013,2]
[360285827,1746706347063,-186.86794338,0.0001023,2]
[360285828,1746706363813,-10.03650022,0.0001023,2]
[360285829,1746706404018,250.0,0.0001013,2]
[360285830,1746706412058,747.47177352,0.0001013,2]
[360285832,1746706490083,250.0,0.0001013,2]
[360285841,1746706820802,166.62260399,6.3e-07,2]
[360285893,1746707436797,-471.725,0.00010754,2]
[360285894,1746707436810,-571.70886466,0.00010754,2]
[360285895,1746707436819,-500.0,0.00010852,2]
[360285896,1746707436829,-500.0,0.00010852,2]
[360285897,1746707436839,-500.0,0.00010852,2]
[360285898,1746707436849,-500.0,0.00010852,2]
[360285899,1746707436858,-351.89809949,0.00010852,2]
[360285900,1746707436868,-500.0,0.00010852,2]
[360285901,1746707436878,-500.0,0.00010852,2]
[360285902,1746707436889,-500.0,0.00010852,2]
[360285903,1746707436899,-500.0,0.00010852,2]
[360285904,1746707436909,-500.0,0.00010852,2]
[360285905,1746707436918,-585.12140456,0.00010852,2]
[360285906,1746707436928,-500.0,0.00010852,2]
[360285907,1746707436938,-500.0,0.00010852,2]
[360285908,1746707436948,-500.0,0.00010852,2]
[360285909,1746707436958,-386.33237369,0.00010852,2]
[360285910,1746707436968,-500.0,0.00010852,2]
[360285911,1746707436978,-500.0,0.00010852,2]
[360285912,1746707436988,-500.0,0.00010852,2]
[360285913,1746707436998,-476.17361974,0.00010852,2]
[360285914,1746707437008,-500.0,0.00010852,2]
[360285915,1746707437018,-500.0,0.00010852,2]
[360285916,1746707437028,-500.0,0.00010852,2]
[360285917,1746707437037,-500.0,0.00010852,2]
[360285918,1746707437048,-500.0,0.00010852,2]
[360285919,1746707437057,-500.0,0.00010852,2]
[360285920,1746707437067,-500.0,0.00010852,2]
[360285921,1746707437077,-500.0,0.00010852,2]
[360285922,1746707437086,-500.0,0.00010852,2]
[360285923,1746707437095,-500.0,0.00010852,2]
[360285924,1746707437105,-500.0,0.00010852,2]
[360285925,1746707437115,-500.0,0.00010852,2]
[360285926,1746707437125,-500.0,0.00010852,2]
[360285927,1746707437135,-300.0,0.00010852,2]
[360285928,1746707437145,-500.0,0.00010858,2]
[360285929,1746707437155,-374.13627093,0.00010858,2]
[360285930,1746707437165,-500.0,0.00010858,2]
[360285931,1746707437174,-169.25476335,0.00010858,2]
[360285932,1746707437185,-500.0,0.00010858,2]
[360285933,1746707437195,-54752.77392373,0.00010859,2]
[360285934,1746707437207,-207.6080909,0.00010958,2]
[360285935,1746707437216,-530.42032503,0.00010958,2]
[360285937,1746707437226,-400.0,0.00010958,2]
[360285938,1746707437235,-356.43248306,0.00010958,2]
[360285939,1746707437244,-480.40275492,0.00010958,2]
[360285940,1746707437254,-167.76670453,0.00010958,2]
[360285941,1746707437263,-439.66818328,0.00010958,2]
[360285942,1746707437273,-504.12056445,0.00010958,2]
[360285943,1746707437283,-502.75030629,0.00010958,2]
[360285944,1746707437292,-500.0,0.00010958,2]
[360285945,1746707437303,-500.0,0.00010958,2]
[360285946,1746707437313,-400.0,0.00010958,2]
[360285947,1746707437323,-400.0,0.00010958,2]
[360285948,1746707437334,-400.0,0.00010958,2]
[360285949,1746707437344,-400.0,0.00010958,2]
[360285950,1746707437353,-400.0,0.00010958,2]
[360285951,1746707437363,-400.0,0.00010958,2]
[360285953,1746707437374,-400.0,0.00010958,2]
[360285954,1746707437385,-151.0,0.00010958,2]
[360285955,1746707437395,-454.11,0.00010958,2]
[360285957,1746707437407,-400.0,0.00010958,2]
[360285958,1746707437417,-400.0,0.00010958,2]
[360285959,1746707437427,-151.0,0.00010958,2]
[360285960,1746707437436,-400.0,0.00010958,2]
[360285961,1746707437447,-400.0,0.00010958,2]
[360285962,1746707437457,-400.0,0.00010958,2]
[360285963,1746707437467,-400.0,0.00010958,2]
[360285964,1746707437476,-400.0,0.00010958,2]
[360285965,1746707437486,-294.41772194,0.00010958,2]
[360285966,1746707437496,-400.0,0.00010958,2]
[360285967,1746707437506,-400.0,0.00010958,2]
[360285968,1746707437516,-314.11260894,0.00010958,2]
[360285970,1746707437525,-518.0,0.00010958,2]
[360285971,1746707437535,-400.0,0.00010958,2]
[360285973,1746707437544,-400.0,0.00010958,2]
[360285975,1746707437555,-504.76829832,0.00010958,2]
[360285977,1746707437564,-406.88592846,0.00010958,2]
[360285979,1746707437574,-274.44,0.00010958,2]
[360285981,1746707437584,-526.73,0.00010958,2]
[360285983,1746707437594,-400.0,0.00010958,2]
[360285985,1746707437604,-400.0,0.00010958,2]
[360285987,1746707437613,-400.0,0.00010958,2]
[360285989,1746707437622,-400.0,0.00010958,2]
[360285991,1746707437633,-400.0,0.00010958,2]
[360285993,1746707437642,-402.01711098,0.00010958,2]
[360285995,1746707437653,-408.7222858,0.00010958,2]
[360285997,1746707437663,-251.50963293,0.00010958,2]
[360285999,1746707437672,-196.20583479,0.00010958,2]
[360286001,1746707437682,-400.0,0.00010958,2]
[360286003,1746707437692,-400.0,0.00010958,2]
[360286006,1746707437701,-400.0,0.00010958,2]
[360286008,1746707437711,-400.0,0.00010958,2]
[360286010,1746707437721,-400.0,0.00010958,2]
[360286011,1746707437730,-237.74348052,0.00010958,2]
[360286014,1746707437740,-400.0,0.00010958,2]
[360286016,1746707437750,-400.0,0.00010958,2]
[360286017,1746707437760,-546.53,0.00010958,2]
[360286018,1746707437770,-400.0,0.00010958,2]
[360286019,1746707437780,-965.86,0.00010958,2]
[360286020,1746707437790,-400.0,0.00010958,2]
[360286021,1746707437799,-400.0,0.00010958,2]
[360286023,1746707437809,-400.0,0.00010958,2]
[360286025,1746707437818,-400.0,0.00010958,2]
[360286027,1746707437827,-151.0,0.00010959,2]
[360286029,1746707437837,-151.0,0.00010959,2]
[360286031,1746707437846,-241.457112,0.00010959,2]
[360286032,1746707437855,-151.0,0.00010959,2]
[360286034,1746707437864,-151.0,0.00010959,2]
[360286036,1746707437875,-151.0,0.00010959,2]
[360286039,1746707437884,-151.0,0.00010959,2]
[360286040,1746707437894,-151.0,0.00010959,2]
[360286041,1746707437903,-296.249992,0.00010959,2]
[360286042,1746707437913,-500.0,0.00010959,2]
[360286043,1746707437923,-500.0,0.00010959,2]
[360286044,1746707437933,-325.24822637,0.00010959,2]
[360286046,1746707437946,-174.75177363,0.00010959,2]
[360286048,1746707437956,-500.0,0.00010959,2]
[360286049,1746707437965,-264.76822637,0.00010959,2]
[360286050,1746707437977,-235.23177363,0.00010959,2]
[360286051,1746707437986,-500.0,0.00010959,2]
[360286052,1746707437996,-500.0,0.00010959,2]
[360286054,1746707438005,-500.0,0.00010959,2]
[360286056,1746707438015,-500.0,0.00010959,2]
[360286058,1746707438029,-341.78828527,0.00010959,2]
[360286060,1746707438039,-500.0,0.00010959,2]
[360286062,1746707438049,-500.0,0.00010959,2]
[360286064,1746707438059,-500.0,0.00010959,2]
[360286066,1746707438069,-500.0,0.00010959,2]
[360286068,1746707438078,-500.0,0.00010959,2]
[360286070,1746707438088,-500.0,0.00010959,2]
[360286071,1746707438097,-500.0,0.00010959,2]
[360286073,1746707438106,-500.0,0.00010959,2]
[360286075,1746707438115,-384.93588262,0.00010959,2]
[360286078,1746707438127,-115.06411738,0.00010959,2]
[360286081,1746707438137,-500.0,0.00010959,2]
[360286084,1746707438146,-500.0,0.00010959,2]
[360286087,1746707438155,-500.0,0.00010959,2]
[360286089,1746707438165,-500.0,0.00010959,2]
[360286092,1746707438174,-500.0,0.00010959,2]
[360286094,1746707438184,-500.0,0.00010959,2]
[360286095,1746707438193,-500.0,0.00010959,2]
[360286096,1746707438203,-500.0,0.00010959,2]
[360286097,1746707438214,-500.0,0.00010959,2]
[360286098,1746707438224,-500.0,0.00010959,2]
[360286099,1746707438233,-1043.43386466,0.00011041,2]
[360286100,1746707438244,-151.0,0.00011232,2]
[360286101,1746707438258,-400.0,0.00011232,2]
[360286102,1746707438267,-400.0,0.00011232,2]
[360286103,1746707438278,-454.11,0.00011232,2]
[360286104,1746707438289,-400.0,0.00011232,2]
[360286105,1746707438298,-400.0,0.00011232,2]
[360286106,1746707438307,-451.71,0.00011232,2]
[360286107,1746707438318,-400.0,0.00011232,2]
[360286108,1746707438328,-400.0,0.00011232,2]
[360286109,1746707438337,-400.0,0.00011232,2]
[360286110,1746707438348,-431.60086126,0.00011232,2]
[360286111,1746707438358,-400.0,0.00011232,2]
[360286112,1746707438367,-518.0,0.00011232,2]
[360286113,1746707438377,-400.0,0.00011232,2]
[360286114,1746707438388,-526.73,0.00011232,2]
[360286115,1746707438397,-186.51693456,0.00011232,2]
[360286116,1746707438407,-400.0,0.00011232,2]
[360286117,1746707438419,-400.0,0.00011232,2]
[360286118,1746707438428,-400.0,0.00011232,2]
[360286119,1746707438438,-400.0,0.00011232,2]
[360286120,1746707438448,-400.0,0.00011232,2]
[360286121,1746707438458,-400.0,0.00011232,2]
[360286122,1746707438468,-382.11988096,0.00011232,2]
[360286123,1746707438480,-520.21779544,0.00011232,2]
[360286124,1746707438489,-965.86,0.00011232,2]
[360286125,1746707438498,-400.0,0.00011232,2]
[360286126,1746707438509,-400.0,0.00011232,2]
[360286127,1746707438518,-400.0,0.00011232,2]
[360286128,1746707438529,-400.0,0.00011232,2]
[360286129,1746707438539,-539.41332116,0.00011273,2]
[360286130,1746707438550,-500.0,0.00011273,2]
[360286131,1746707438560,-151.0,0.00011273,2]